DepartmentFamily,Entity,Date,ExpenseType,ExpenseArea,Supplier,Transaction Number,Amount,Description,Supplier Type,VATRegistrationNumber
DBT,The Insolvency Service,03/07/2023,Other Costs,Official Receiver Services,Royal Mail (Redirection),300047239,"2,370.00",Finance - OR Case Disbursements,Large,
DBT,The Insolvency Service,03/07/2023,Legal - Outsourced Investigation,Official Receiver Services,Gowling WLG (UK) LLP,300047202,"3,920.49",Solicitors Investigations,,858698838
DBT,The Insolvency Service,03/07/2023,Legal - Costs of Civil Litigation Disqualifications,Legal Services Division,Gowling WLG (UK) LLP,300047203,"11,719.60",Costs of Civil Litigation Disqualifications,,858698838
DBT,The Insolvency Service,03/07/2023,Legal - Costs of Recovering Civil Costs Awarded,Legal Services Division,Gowling WLG (UK) LLP,300047205,"8,774.50",Recovery of Civil Proceedings Costs Awarded,,858698838
DBT,The Insolvency Service,03/07/2023,Legal - Costs of Recovering Civil Costs Awarded,Legal Services Division,Burness Paull & Williamsons Solicitors,300047198,601.03,Recovery of Civil Proceedings Costs Awarded,Large,216218532
DBT,The Insolvency Service,03/07/2023,Legal - Outsourced Investigation,Investigations & Enforcement Services,Burness Paull & Williamsons Solicitors,300047200,"1,339.50",Solicitors Investigations,Large,216218532
DBT,The Insolvency Service,03/07/2023,Legal - Costs of Criminal Prosecutions and Advice,Legal Services Division,Ringrose Law Solicitors,300047207,675.00,Costs of Criminal Prosecutions and Advice,SME,
DBT,The Insolvency Service,03/07/2023,Legal - Costs of Civil Litigation Disqualifications,Legal Services Division,Mills & Reeve LLP,300047206,"2,155.45",Costs of Civil Litigation Disqualifications,Large,104834588
DBT,The Insolvency Service,03/07/2023,Staff Costs - Non-Perms,Business Service Division,Randstad Solutions Ltd,300047177,641.58,Agency Staff & Contractor Costs,Large,492435726
DBT,The Insolvency Service,03/07/2023,Staff Costs - Non-Perms,Business Service Division,Randstad Solutions Ltd,300047180,641.58,Agency Staff & Contractor Costs,Large,492435726
DBT,The Insolvency Service,03/07/2023,ICT,Projects,Prolifics Inc,300045959,"17,500.00",IT - Transform,,639210253
DBT,The Insolvency Service,03/07/2023,ICT,Projects,Prolifics Inc,300047158,"24,850.00",IT - Transform,,639210253
DBT,The Insolvency Service,03/07/2023,Training,Chief Executive Office,Catherine Baxter Voice Coaching,300047175,"1,250.00",Training,,
DBT,The Insolvency Service,04/07/2023,Legal - Costs of Civil Litigation Disqualifications,Legal Services Division,Burness Paull & Williamsons Solicitors,300047201,"16,614.62",Costs of Civil Litigation Disqualifications,Large,216218532
DBT,The Insolvency Service,04/07/2023,Estates - Property,"Finance, Commercial, Sustainability & Property",Edf Energy,300047069,"1,252.44",Electricity,Large,523041202
DBT,The Insolvency Service,04/07/2023,Staff Costs - Non-Perms,Projects,SmartSourcing,300047210,"19,228.70",Agency Staff & Contractor Costs,SME,788507869
DBT,The Insolvency Service,04/07/2023,Staff Costs - Non-Perms,Projects,SmartSourcing,300047211,"18,568.70",Agency Staff & Contractor Costs,SME,788507869
DBT,The Insolvency Service,04/07/2023,Staff Costs - Non-Perms,Projects,SmartSourcing,300047212,"21,208.70",Agency Staff & Contractor Costs,SME,788507869
DBT,The Insolvency Service,04/07/2023,HR,Business Service Division,People for Research Ltd,300046965,"1,490.00",Recruitment Costs,,736582312
DBT,The Insolvency Service,04/07/2023,HR,Business Service Division,People for Research Ltd,300046965,600,Recruitment Costs,,736582312
DBT,The Insolvency Service,05/07/2023,Legal - Costs of Civil Litigation Winding Up,Legal Services Division,Gowling WLG (UK) LLP,300047204,"2,179.30",Costs of Civil Litigation Winding Up,,858698838
DBT,The Insolvency Service,05/07/2023,Legal - Costs of Criminal Prosecutions and Advice,Legal Services Division,Ringrose Law Solicitors,300047268,675.00,Costs of Criminal Prosecutions and Advice,SME,
DBT,The Insolvency Service,05/07/2023,Legal - Costs of Criminal Prosecutions and Advice,Legal Services Division,Park Square Barristers,300047282,"1,633.57",Costs of Criminal Prosecutions and Advice,SME,875308991
DBT,The Insolvency Service,05/07/2023,ICT,Change and Technology Services,Netcompany UK Ltd,300047242,"56,605.20",IT - Run,Large,171809009
DBT,The Insolvency Service,05/07/2023,Staff Costs - Non-Perms,Projects,SmartSourcing,300047209,"22,968.00",Outside IR35 Non Perm Resource,SME,788507869
DBT,The Insolvency Service,05/07/2023,Off-Site Storage,Official Receiver Services,Purdie Worldwide,300047269,"1,154.05",Storage - HQ,Large,208569880
DBT,The Insolvency Service,05/07/2023,Staff Costs - Non-Perms,Investigations & Enforcement Services,Red Snapper Recruitment,300047155,"1,175.22",Agency Staff & Contractor Costs,SME,835435718
DBT,The Insolvency Service,06/07/2023,Estates - Property,"Finance, Commercial, Sustainability & Property",Companies House,300047300,"36,132.60",Rent,Public Sector,
DBT,The Insolvency Service,06/07/2023,Estates - Property,"Finance, Commercial, Sustainability & Property",HM Land Registry (F&C - Estates),300047287,696.72,Rent,Public Sector,
DBT,The Insolvency Service,06/07/2023,Estates - Property,"Finance, Commercial, Sustainability & Property",HM Land Registry (F&C - Estates),300047289,"93,602.75",Rent,Public Sector,
DBT,The Insolvency Service,06/07/2023,Estates - Property,"Finance, Commercial, Sustainability & Property",Edf Energy,300047348,620.08,Electricity,Large,523041202
DBT,The Insolvency Service,06/07/2023,Staff Costs - Non-Perms,Chief Executive Office,Allen Lane Limited,300047294,"16,943.28",Agency Staff & Contractor Costs,,835970985
DBT,The Insolvency Service,06/07/2023,ICT,Change and Technology Services,Geoff Smith Associates Ltd,300047298,"19,387.19",IT - Run,SME,813047166
DBT,The Insolvency Service,06/07/2023,Staff Costs - Non-Perms,Shared Contracts,ALEXANDER MANN SOLUTIONS,300047192,"108,982.33",Agency Staff & Contractor Costs,Large,7444926120
DBT,The Insolvency Service,06/07/2023,ICT,Change and Technology Services,Netcompany UK Ltd,300047243,"64,299.60",IT - Run,Large,171809009
DBT,The Insolvency Service,06/07/2023,ICT,"Strategy, Policy & Analysis",Netcompany UK Ltd,300047275,"2,531.10",IT - Run,Large,171809009
DBT,The Insolvency Service,06/07/2023,Legal - Costs of Civil Litigation Disqualifications,Legal Services Division,5 Stone Buildings,300047327,"3,400.00",Civil Litigation Disqualifications Counsel Fees,SME,998486332
DBT,The Insolvency Service,06/07/2023,Staff Costs - Non-Perms,Investigations & Enforcement Services,Red Snapper Recruitment,300047146,"1,958.70",Agency Staff & Contractor Costs,SME,835435718
DBT,The Insolvency Service,06/07/2023,Staff Costs - Non-Perms,Investigations & Enforcement Services,Red Snapper Recruitment,300047147,"1,958.70",Agency Staff & Contractor Costs,SME,835435718
DBT,The Insolvency Service,06/07/2023,Staff Costs - Non-Perms,Investigations & Enforcement Services,Red Snapper Recruitment,300047148,"4,290.00",Agency Staff & Contractor Costs,SME,835435718
DBT,The Insolvency Service,06/07/2023,Staff Costs - Non-Perms,Investigations & Enforcement Services,Red Snapper Recruitment,300047149,"1,958.70",Agency Staff & Contractor Costs,SME,835435718
DBT,The Insolvency Service,06/07/2023,Staff Costs - Non-Perms,Investigations & Enforcement Services,Red Snapper Recruitment,300047150,"1,958.70",Agency Staff & Contractor Costs,SME,835435718
DBT,The Insolvency Service,06/07/2023,Staff Costs - Non-Perms,Investigations & Enforcement Services,Red Snapper Recruitment,300047151,"1,958.70",Agency Staff & Contractor Costs,SME,835435718
DBT,The Insolvency Service,06/07/2023,Staff Costs - Non-Perms,Investigations & Enforcement Services,Red Snapper Recruitment,300047152,"1,958.70",Agency Staff & Contractor Costs,SME,835435718
DBT,The Insolvency Service,06/07/2023,Staff Costs - Non-Perms,Investigations & Enforcement Services,Red Snapper Recruitment,300047153,"1,958.70",Agency Staff & Contractor Costs,SME,835435718
DBT,The Insolvency Service,06/07/2023,Staff Costs - Non-Perms,Investigations & Enforcement Services,Red Snapper Recruitment,300047157,"1,958.70",Agency Staff & Contractor Costs,SME,835435718
DBT,The Insolvency Service,06/07/2023,Other Costs,Official Receiver Services,Controlaccount PLC,300047342,780.00,Financial Searches,SME,945758964
DBT,The Insolvency Service,06/07/2023,Other Costs,Official Receiver Services,Controlaccount PLC,300047343,"7,136.16",Financial Searches,SME,945758964
DBT,The Insolvency Service,06/07/2023,Other Costs,Official Receiver Services,Controlaccount PLC,300047347,"8,370.24",Financial Searches,SME,945758964
DBT,The Insolvency Service,06/07/2023,ICT,Change and Technology Services,ITS Computing Limited (formerly Equiniti ICS Ltd),300047134,"43,000.00",IT - Run,,
DBT,The Insolvency Service,06/07/2023,ICT,Projects,ITS Computing Limited (formerly Equiniti ICS Ltd),300047321,"52,990.00",IT - Refresh,,
DBT,The Insolvency Service,06/07/2023,Estates - Property,"Finance, Commercial, Sustainability & Property",HM Land Registry (F&C - Estates),300047208,-664.51,Rent,Public Sector,
DBT,The Insolvency Service,06/07/2023,Estates - Property,"Finance, Commercial, Sustainability & Property",HM Land Registry (F&C - Estates),300047286,-700.18,Rent,Public Sector,
DBT,The Insolvency Service,07/07/2023,ICT,"Strategy, Policy & Analysis",Beis - Dept. For Business Innovation & Skills,300047379,"8,805.51",IT - Run,Public Sector,888825550
DBT,The Insolvency Service,07/07/2023,"Printing, Stationary, Postage & Confidential Waste",Shared Contracts,Banner Business Services Ltd,300047271,"6,246.25",Office supplies,Large,731860439
DBT,The Insolvency Service,07/07/2023,Off-Site Storage,Shared Contracts,Iron Mountain (Uk) Ltd,300047196,"35,595.29",Storage - OR,Large,607937516
DBT,The Insolvency Service,07/07/2023,"Printing, Stationary, Postage & Confidential Waste",Shared Contracts,Quadient UK Limited (Franking Machine top ups),300047195,"12,194.31",Postage,,
DBT,The Insolvency Service,07/07/2023,"Printing, Stationary, Postage & Confidential Waste",Shared Contracts,Restore Datashred (Data Solutions 2016 Ltd T/A Restore Data),300047267,"1,646.28",Confidential Waste,Large,240193143
DBT,The Insolvency Service,07/07/2023,HR,Official Receiver Services,Cabinet Office,300047128,"1,850.00",Recruitment Costs,Large,888801080
DBT,The Insolvency Service,07/07/2023,HR,People & Communications,Uksbs Shared Services Centre Ltd,300047031,"8,036.31",HR & Payroll Costs,Large,888825550
DBT,The Insolvency Service,07/07/2023,Staff Costs - Non-Perms,Projects,SmartSourcing,300047362,"28,089.60",Agency Staff & Contractor Costs,SME,788507869
DBT,The Insolvency Service,07/07/2023,Staff Costs - Non-Perms,Projects,SmartSourcing,300047364,"19,888.70",Agency Staff & Contractor Costs,SME,788507869
DBT,The Insolvency Service,07/07/2023,Staff Costs - Non-Perms,Change and Technology Services,SmartSourcing,300047365,"15,808.51",Agency Staff & Contractor Costs,SME,788507869
DBT,The Insolvency Service,07/07/2023,Staff Costs - Non-Perms,Projects,SmartSourcing,300047366,"27,957.60",Agency Staff & Contractor Costs,SME,788507869
DBT,The Insolvency Service,07/07/2023,ICT,Change and Technology Services,Advanced 365 Limited,300047214,"1,977.61",IT - Run,Large,927547983
DBT,The Insolvency Service,07/07/2023,"Legal, Translation & Consultancy",Change and Technology Services,Nomensa Limited,300047361,"19,000.00",Consultancy,Large,771727411
DBT,The Insolvency Service,07/07/2023,ICT,"Strategy, Policy & Analysis",NTT DATA UK LIMITED,300047377,"11,371.20",IT - Run,Large,159334590
DBT,The Insolvency Service,07/07/2023,Staff Costs - Non-Perms,"Finance, Commercial, Sustainability & Property",Spinwell Global Ltd,300047373,"2,624.93",Agency Staff & Contractor Costs,,257189569
DBT,The Insolvency Service,07/07/2023,Staff Costs - Non-Perms,Change and Technology Services,Talent International (UK) Ltd,300047369,"22,176.00",Agency Staff & Contractor Costs,,176415692
DBT,The Insolvency Service,07/07/2023,Staff Costs - Non-Perms,Change and Technology Services,Talent International (UK) Ltd,300047370,"8,853.60",Agency Staff & Contractor Costs,,176415692
DBT,The Insolvency Service,07/07/2023,Staff Costs - Non-Perms,Projects,Talent International (UK) Ltd,300047371,"18,000.00",Agency Staff & Contractor Costs,,176415692
DBT,The Insolvency Service,10/07/2023,Off-Site Storage,Official Receiver Services,Iron Mountain (Uk) Ltd,300047320,"3,865.92",Storage - HQ,Large,607937516
DBT,The Insolvency Service,10/07/2023,Training,People & Communications,KPMG,300047385,"2,984.46",Training,Large,
DBT,The Insolvency Service,10/07/2023,Estates - Property,"Finance, Commercial, Sustainability & Property",Edf Energy,300047288,"1,476.29",Electricity,Large,523041202
DBT,The Insolvency Service,10/07/2023,Estates - Property,"Finance, Commercial, Sustainability & Property",Edf Energy,300047290,971.34,Electricity,Large,523041202
DBT,The Insolvency Service,10/07/2023,Estates - Property,"Finance, Commercial, Sustainability & Property",Dwf Law LLP,300047326,655.00,Estates Professional Services,,
DBT,The Insolvency Service,10/07/2023,Off-Site Storage,Official Receiver Services,Restore Plc (Records Management),300047389,"10,762.96",Storage - HQ,Large,843863011
DBT,The Insolvency Service,10/07/2023,Off-Site Storage,Official Receiver Services,Oasis UK Ltd,300047378,"1,142.95",Storage - HQ,Large,931579211
DBT,The Insolvency Service,10/07/2023,Staff Costs - Perms,Shared Contracts,Edenred (UK Group) Limited,300047246,"50,425.00",Staff Costs - Perms,,
DBT,The Insolvency Service,10/07/2023,Other Costs,People & Communications,Edenred (UK Group) Limited,300047407,999.00,Cycle to Work Scheme (NET nil impact),,
DBT,The Insolvency Service,10/07/2023,Estates - Property,People & Communications,Access 2 Comfort Ltd,300047325,985.50,Furniture,,980253321
DBT,The Insolvency Service,10/07/2023,Off-Site Storage,Official Receiver Services,Crown Records Management,300047380,"1,655.98",Storage - HQ,SME,902181658
DBT,The Insolvency Service,10/07/2023,Legal - Costs of Civil Litigation Disqualifications,Legal Services Division,5 Stone Buildings,300047387,"1,813.20",Civil Litigation Disqualifications Counsel Fees,SME,998486332
DBT,The Insolvency Service,10/07/2023,Staff Costs - Non-Perms,Business Service Division,Randstad Solutions Ltd,300047395,"6,415.80",Agency Staff & Contractor Costs,Large,492435726
DBT,The Insolvency Service,10/07/2023,Staff Costs - Non-Perms,Business Service Division,Randstad Solutions Ltd,300047399,"9,077.51",Agency Staff & Contractor Costs,Large,492435726
DBT,The Insolvency Service,10/07/2023,Staff Costs - Non-Perms,Business Service Division,Randstad Solutions Ltd,300047401,"1,664.64",Agency Staff & Contractor Costs,Large,492435726
DBT,The Insolvency Service,10/07/2023,HR,Business Service Division,People for Research Ltd,300046966,662.5,Recruitment Costs,,736582312
DBT,The Insolvency Service,10/07/2023,HR,Business Service Division,People for Research Ltd,300046967,662.5,Recruitment Costs,,736582312
DBT,The Insolvency Service,11/07/2023,Estates - Property,"Finance, Commercial, Sustainability & Property",Companies House,300047301,700.10,Rent,Public Sector,
DBT,The Insolvency Service,11/07/2023,Estates - Property,"Finance, Commercial, Sustainability & Property",HM Land Registry (F&C - Estates),300047341,"1,047.04",Rent,Public Sector,
DBT,The Insolvency Service,11/07/2023,Other Costs,Business Service Division,Hm Treasury,300047291,"67,000.00",Banking & Nilo,Public Sector,888827544
DBT,The Insolvency Service,11/07/2023,Legal - Costs of Recovering Civil Costs Awarded,Legal Services Division,Womble Bond Dickinson (UK) LLP,300047467,924.07,Recovery of Civil Proceedings Costs Awarded,,123393627
DBT,The Insolvency Service,11/07/2023,"Legal, Translation & Consultancy",Legal Services Division,Womble Bond Dickinson (UK) LLP,300047468,"94,570.25",Legal Costs Other,,123393627
DBT,The Insolvency Service,11/07/2023,Legal - Outsourced Investigation,Investigations & Enforcement Services,Howes Percival,300047425,"3,560.80",Solicitors Investigations,Large,119523573
DBT,The Insolvency Service,11/07/2023,Legal - Outsourced Investigation,Investigations & Enforcement Services,Howes Percival,300047426,"5,273.50",Solicitors Investigations,Large,119523573
DBT,The Insolvency Service,11/07/2023,Legal - Costs of Civil Litigation Disqualifications,Legal Services Division,Howes Percival,300047428,"3,215.50",Costs of Civil Litigation Disqualifications,Large,119523573
DBT,The Insolvency Service,11/07/2023,Legal - Costs of Civil Litigation Winding Up,Legal Services Division,Howes Percival,300047429,"1,286.00",Costs of Civil Litigation Winding Up,Large,119523573
DBT,The Insolvency Service,11/07/2023,Legal - Outsourced Investigation,Official Receiver Services,Howes Percival,300047430,924.50,Solicitors Investigations,Large,119523573
DBT,The Insolvency Service,11/07/2023,Legal - Costs of Recovering Civil Costs Awarded,Legal Services Division,Howes Percival,300047431,"2,684.50",Recovery of Civil Proceedings Costs Awarded,Large,119523573
DBT,The Insolvency Service,11/07/2023,"Printing, Stationary, Postage & Confidential Waste",Shared Contracts,Quadient UK,300047409,"73,474.49",Office machinery - Lease costs,Large,
DBT,The Insolvency Service,11/07/2023,Legal - Outsourced Investigation,Official Receiver Services,Gowling WLG (UK) LLP,300047469,"3,854.40",Solicitors Investigations,,858698838
DBT,The Insolvency Service,11/07/2023,Legal - Costs of Recovering Civil Costs Awarded,Legal Services Division,Gowling WLG (UK) LLP,300047470,"12,010.19",Recovery of Civil Proceedings Costs Awarded,,858698838
DBT,The Insolvency Service,11/07/2023,Legal - Outsourced Investigation,Investigations & Enforcement Services,Burness Paull & Williamsons Solicitors,300047453,"2,520.53",Solicitors Investigations,Large,216218532
DBT,The Insolvency Service,11/07/2023,Legal - Costs of Recovering Civil Costs Awarded,Legal Services Division,Burness Paull & Williamsons Solicitors,300047455,581.5,Recovery of Civil Proceedings Costs Awarded,Large,216218532
DBT,The Insolvency Service,11/07/2023,Legal - Costs of Recovering Civil Costs Awarded,Legal Services Division,Burness Paull & Williamsons Solicitors,300047456,548.44,Recovery of Civil Proceedings Costs Awarded,Large,216218532
DBT,The Insolvency Service,11/07/2023,Legal - Outsourced Investigation,Investigations & Enforcement Services,Burness Paull & Williamsons Solicitors,300047458,750.50,Solicitors Investigations,Large,216218532
DBT,The Insolvency Service,11/07/2023,Investigation & Enforcement,Investigations & Enforcement Services,Intaforensics Ltd,300047374,"28,907.23",Case Related Costs,,900353372
DBT,The Insolvency Service,11/07/2023,Investigation & Enforcement,Investigations & Enforcement Services,Intaforensics Ltd,300047375,"30,644.28",Case Related Costs,,900353372
DBT,The Insolvency Service,11/07/2023,"Printing, Stationary, Postage & Confidential Waste",Legal Services Division,Thomson Reuters Professional Uk Ltd,300047244,842.71,Publications,Large,
DBT,The Insolvency Service,11/07/2023,Estates - Property,"Finance, Commercial, Sustainability & Property",Edf Energy,300047368,"1,292.92",Electricity,Large,523041202
DBT,The Insolvency Service,11/07/2023,Training,Chief Executive Office,KPMG LLP,300047376,"1,722.00",Training,Large,791788859
DBT,The Insolvency Service,11/07/2023,Legal - Costs of Civil Litigation Disqualifications,Legal Services Division,Tlt Llp,300047445,"6,982.66",Costs of Civil Litigation Disqualifications,Large,3574583240
DBT,The Insolvency Service,11/07/2023,Legal - Costs of Civil Litigation Disqualifications,Legal Services Division,Tlt Llp,300047446,"5,467.66",Costs of Civil Litigation Disqualifications,Large,3574583240
DBT,The Insolvency Service,11/07/2023,Legal - Outsourced Investigation,Investigations & Enforcement Services,Tlt Llp,300047448,"6,007.33",Solicitors Investigations,Large,3574583240
DBT,The Insolvency Service,11/07/2023,Legal - Outsourced Investigation,Official Receiver Services,Tlt Llp,300047464,"1,405.92",Solicitors Investigations,Large,3574583240
DBT,The Insolvency Service,11/07/2023,HR,People & Communications,Health Partners Ltd,300047297,"2,818.66",Staff Welfare,,806426440
DBT,The Insolvency Service,11/07/2023,Staff Costs - Non-Perms,Projects,SmartSourcing,300047363,"11,525.47",Agency Staff & Contractor Costs,SME,788507869
DBT,The Insolvency Service,11/07/2023,Staff Costs - Non-Perms,Projects,SmartSourcing,300047367,"17,248.70",Agency Staff & Contractor Costs,SME,788507869
DBT,The Insolvency Service,11/07/2023,Staff Costs - Non-Perms,Investigations & Enforcement Services,Red Snapper Recruitment,300047154,"1,958.70",Agency Staff & Contractor Costs,SME,835435718
DBT,The Insolvency Service,11/07/2023,ICT,Business Service Division,NTT DATA UK LIMITED,300046996,"8,760.00",IT - Run,Large,159334590
DBT,The Insolvency Service,11/07/2023,Other Costs,Investigations & Enforcement Services,Controlaccount PLC,300047345,"1,368.00",Financial Searches,SME,945758964
DBT,The Insolvency Service,11/07/2023,Other Costs,Legal Services Division,Controlaccount PLC,300047433,"3,188.16",Financial Searches,SME,945758964
DBT,The Insolvency Service,11/07/2023,Staff Costs - Non-Perms,Projects,Talent International (UK) Ltd,300047438,"15,840.00",Agency Staff & Contractor Costs,,176415692
DBT,The Insolvency Service,11/07/2023,ICT,"Finance, Commercial, Sustainability & Property",Gartner UK Limited,300047437,"54,480.00",IT - Run,,635878884
DBT,The Insolvency Service,11/07/2023,ICT,Business Service Division,NTT DATA UK LIMITED,300047372,"-2,520.00",IT - Run,Large,159334590
DBT,The Insolvency Service,12/07/2023,Legal - Costs of Civil Litigation Disqualifications,Legal Services Division,18 St John Street Chambers,300047503,"1,045.00",Civil Litigation Disqualifications Counsel Fees,SME,826858289
DBT,The Insolvency Service,12/07/2023,ICT,Change and Technology Services,Gamma Telecom Limited,300046757,"1,586.09",Telephones - Charges,Large,823820344
DBT,The Insolvency Service,12/07/2023,Legal - Costs of Civil Litigation Disqualifications,Legal Services Division,South Square Barristers,300047488,520.00,Civil Litigation Disqualifications Counsel Fees,,830800167
DBT,The Insolvency Service,13/07/2023,ICT,Change and Technology Services,Daisy Corporate Services Trading Limited,300047492,"11,786.00",IT - Run,Large,722471355
DBT,The Insolvency Service,13/07/2023,Estates - Property,"Finance, Commercial, Sustainability & Property",Edf Energy,300047522,681.79,Electricity,Large,523041202
DBT,The Insolvency Service,13/07/2023,Estates - Property,"Finance, Commercial, Sustainability & Property",Edf Energy,300047530,"2,325.95",Electricity,Large,523041202
DBT,The Insolvency Service,13/07/2023,Legal - Costs of Civil Litigation Disqualifications,Legal Services Division,Exchange Chambers,300047498,585.00,Civil Litigation Disqualifications Counsel Fees,SME,
DBT,The Insolvency Service,13/07/2023,Estates - Property,"Finance, Commercial, Sustainability & Property",Dwf Law LLP,300047526,705.60,Estates Professional Services,,
DBT,The Insolvency Service,13/07/2023,Investigation & Enforcement,Investigations & Enforcement Services,Mendip Media Group Ltd (Now Trading As Appen) - (Transcri),300047532,"1,479.55",Case Related Costs,SME,609546425
DBT,The Insolvency Service,13/07/2023,Investigation & Enforcement,Investigations & Enforcement Services,Mendip Media Group Ltd (Now Trading As Appen) - (Transcri),300047536,636.27,Case Related Costs,SME,609546425
DBT,The Insolvency Service,13/07/2023,Staff Costs - Non-Perms,Business Service Division,SmartSourcing,300047529,"15,645.70",Outside IR35 Non Perm Resource,SME,788507869
DBT,The Insolvency Service,13/07/2023,Legal - Costs of Civil Litigation Disqualifications,Legal Services Division,Selbourne Chambers,300047549,933.33,Civil Litigation Disqualifications Counsel Fees,SME,1036299146
DBT,The Insolvency Service,13/07/2023,"Legal, Translation & Consultancy",Official Receiver Services,Marten Walsh Cherer Ltd,300047497,"2,150.00",Legal Costs Other,,524446748
DBT,The Insolvency Service,13/07/2023,ICT,Change and Technology Services,NTT DATA UK LIMITED,300047504,"14,113.27",IT - Run,Large,159334590
DBT,The Insolvency Service,13/07/2023,Estates - Property,"Finance, Commercial, Sustainability & Property",Portal Chatham LLP,300047548,900.00,Landlord Service Charge,SME,933428619
DBT,The Insolvency Service,13/07/2023,Training,People & Communications,Ernst & Young LLP,300047495,"56,000.00",Training,Large,773831408
DBT,The Insolvency Service,13/07/2023,Estates - Property,"Finance, Commercial, Sustainability & Property",Vickery Holman (Exeter),300047494,"3,226.31",Landlord Service Charge,,52008956
DBT,The Insolvency Service,17/07/2023,"Legal, Translation & Consultancy",People & Communications,Government Legal Department,300047579,"1,543.20",Legal Costs Other,Public Sector,888823066
DBT,The Insolvency Service,17/07/2023,"Legal, Translation & Consultancy",People & Communications,Government Legal Department,300047581,729.60,Legal Costs Other,Public Sector,888823066
DBT,The Insolvency Service,17/07/2023,"Legal, Translation & Consultancy",People & Communications,Government Legal Department,300047584,"1,579.30",Legal Costs Other,Public Sector,888823066
DBT,The Insolvency Service,17/07/2023,"Legal, Translation & Consultancy",People & Communications,Government Legal Department,300047585,"1,607.10",Legal Costs Other,Public Sector,888823066
DBT,The Insolvency Service,17/07/2023,"Legal, Translation & Consultancy",People & Communications,Government Legal Department,300047591,"3,834.70",Legal Costs Other,Public Sector,888823066
DBT,The Insolvency Service,17/07/2023,"Legal, Translation & Consultancy",People & Communications,Government Legal Department,300047592,"1,258.10",Legal Costs Other,Public Sector,888823066
DBT,The Insolvency Service,17/07/2023,Legal - Costs of Civil Litigation Disqualifications,Legal Services Division,Womble Bond Dickinson (UK) LLP,300047472,"3,237.22",Costs of Civil Litigation Disqualifications,,123393627
DBT,The Insolvency Service,17/07/2023,Legal - Costs of Civil Litigation Disqualifications,Legal Services Division,Womble Bond Dickinson (UK) LLP,300047473,"354,142.06",Costs of Civil Litigation Disqualifications,,123393627
DBT,The Insolvency Service,17/07/2023,Legal - Costs of Civil Litigation Disqualifications,Legal Services Division,Gowling WLG (UK) LLP,300047471,"10,033.56",Costs of Civil Litigation Disqualifications,,858698838
DBT,The Insolvency Service,17/07/2023,Legal - Costs of Civil Litigation Disqualifications,Legal Services Division,Gowling WLG (UK) LLP,300047471,844.00,Costs of Civil Litigation Disqualifications,,858698838
DBT,The Insolvency Service,17/07/2023,Legal - Costs of Civil Litigation Disqualifications,Legal Services Division,Burness Paull & Williamsons Solicitors,300047459,"5,330.50",Costs of Civil Litigation Disqualifications,Large,216218532
DBT,The Insolvency Service,17/07/2023,ICT,Change and Technology Services,Daisy Corporate Services Trading Limited,300047386,"25,887.77",IT - Run,Large,722471355
DBT,The Insolvency Service,17/07/2023,Legal - Costs of Criminal Prosecutions and Advice,Legal Services Division,18 Red Lion Court Chambers,300047560,"3,477.00",Costs of Criminal Prosecutions and Advice,SME,766793665
DBT,The Insolvency Service,17/07/2023,Legal - Costs of Recovering Civil Costs Awarded,Legal Services Division,Tlt Llp,300047463,519.92,Recovery of Civil Proceedings Costs Awarded,Large,3574583240
DBT,The Insolvency Service,17/07/2023,Legal - Costs of Recovering Civil Costs Awarded,Legal Services Division,Tlt Llp,300047463,"1,060.33",Recovery of Civil Proceedings Costs Awarded,Large,3574583240
DBT,The Insolvency Service,17/07/2023,Legal - Costs of Civil Litigation Winding Up,Legal Services Division,Tlt Llp,300047466,"1,875.50",Costs of Civil Litigation Winding Up,Large,3574583240
DBT,The Insolvency Service,17/07/2023,"Printing, Stationary, Postage & Confidential Waste",Legal Services Division,Lexis Nexis,300047602,"1,394.55",Publications,Large,730859520
DBT,The Insolvency Service,17/07/2023,Staff Costs - Non-Perms,Shared Contracts,ALEXANDER MANN SOLUTIONS,300047443,"157,922.58",Agency Staff & Contractor Costs,Large,7444926120
DBT,The Insolvency Service,17/07/2023,Staff Costs - Non-Perms,Investigations & Enforcement Services,Red Snapper Recruitment,300047330,"1,958.70",Agency Staff & Contractor Costs,SME,835435718
DBT,The Insolvency Service,17/07/2023,Staff Costs - Non-Perms,Investigations & Enforcement Services,Red Snapper Recruitment,300047331,"1,958.70",Agency Staff & Contractor Costs,SME,835435718
DBT,The Insolvency Service,17/07/2023,Staff Costs - Non-Perms,Investigations & Enforcement Services,Red Snapper Recruitment,300047332,"1,958.70",Agency Staff & Contractor Costs,SME,835435718
DBT,The Insolvency Service,17/07/2023,Staff Costs - Non-Perms,Investigations & Enforcement Services,Red Snapper Recruitment,300047333,"1,958.70",Agency Staff & Contractor Costs,SME,835435718
DBT,The Insolvency Service,17/07/2023,Staff Costs - Non-Perms,Investigations & Enforcement Services,Red Snapper Recruitment,300047334,"1,958.70",Agency Staff & Contractor Costs,SME,835435718
DBT,The Insolvency Service,17/07/2023,Staff Costs - Non-Perms,Investigations & Enforcement Services,Red Snapper Recruitment,300047335,"1,958.70",Agency Staff & Contractor Costs,SME,835435718
DBT,The Insolvency Service,17/07/2023,Staff Costs - Non-Perms,Investigations & Enforcement Services,Red Snapper Recruitment,300047336,"1,958.70",Agency Staff & Contractor Costs,SME,835435718
DBT,The Insolvency Service,17/07/2023,Staff Costs - Non-Perms,Investigations & Enforcement Services,Red Snapper Recruitment,300047337,"1,958.70",Agency Staff & Contractor Costs,SME,835435718
DBT,The Insolvency Service,17/07/2023,Staff Costs - Non-Perms,Investigations & Enforcement Services,Red Snapper Recruitment,300047338,"1,958.70",Agency Staff & Contractor Costs,SME,835435718
DBT,The Insolvency Service,17/07/2023,Staff Costs - Non-Perms,Investigations & Enforcement Services,Red Snapper Recruitment,300047339,"1,958.70",Agency Staff & Contractor Costs,SME,835435718
DBT,The Insolvency Service,17/07/2023,Staff Costs - Non-Perms,Investigations & Enforcement Services,Red Snapper Recruitment,300047531,"1,958.70",Agency Staff & Contractor Costs,SME,835435718
DBT,The Insolvency Service,17/07/2023,Staff Costs - Non-Perms,Investigations & Enforcement Services,Red Snapper Recruitment,300047534,"1,958.70",Agency Staff & Contractor Costs,SME,835435718
DBT,The Insolvency Service,17/07/2023,Staff Costs - Non-Perms,Investigations & Enforcement Services,Red Snapper Recruitment,300047537,"1,958.70",Agency Staff & Contractor Costs,SME,835435718
DBT,The Insolvency Service,17/07/2023,Staff Costs - Non-Perms,Investigations & Enforcement Services,Red Snapper Recruitment,300047538,"4,290.00",Agency Staff & Contractor Costs,SME,835435718
DBT,The Insolvency Service,17/07/2023,Staff Costs - Non-Perms,Investigations & Enforcement Services,Red Snapper Recruitment,300047539,"1,958.70",Agency Staff & Contractor Costs,SME,835435718
DBT,The Insolvency Service,17/07/2023,Staff Costs - Non-Perms,Investigations & Enforcement Services,Red Snapper Recruitment,300047540,"1,958.70",Agency Staff & Contractor Costs,SME,835435718
DBT,The Insolvency Service,17/07/2023,Staff Costs - Non-Perms,Investigations & Enforcement Services,Red Snapper Recruitment,300047541,"1,958.70",Agency Staff & Contractor Costs,SME,835435718
DBT,The Insolvency Service,17/07/2023,Staff Costs - Non-Perms,Investigations & Enforcement Services,Red Snapper Recruitment,300047542,"1,958.70",Agency Staff & Contractor Costs,SME,835435718
DBT,The Insolvency Service,17/07/2023,Staff Costs - Non-Perms,Investigations & Enforcement Services,Red Snapper Recruitment,300047543,"1,958.70",Agency Staff & Contractor Costs,SME,835435718
DBT,The Insolvency Service,17/07/2023,Staff Costs - Non-Perms,Investigations & Enforcement Services,Red Snapper Recruitment,300047544,"1,958.70",Agency Staff & Contractor Costs,SME,835435718
DBT,The Insolvency Service,17/07/2023,Staff Costs - Non-Perms,Investigations & Enforcement Services,Red Snapper Recruitment,300047545,"1,958.70",Agency Staff & Contractor Costs,SME,835435718
DBT,The Insolvency Service,18/07/2023,"Legal, Translation & Consultancy",People & Communications,Government Legal Department,300047631,"2,579.10",Legal Costs Other,Public Sector,888823066
DBT,The Insolvency Service,18/07/2023,Legal - Costs of Criminal Prosecutions and Advice,Legal Services Division,18 Red Lion Court Chambers,300047621,"1,275.00",Costs of Criminal Prosecutions and Advice,SME,766793665
DBT,The Insolvency Service,18/07/2023,Legal - Costs of Criminal Prosecutions and Advice,Legal Services Division,St Philips Barristers,300047622,600.00,Costs of Criminal Prosecutions and Advice,SME,614053968
DBT,The Insolvency Service,18/07/2023,Legal - Costs of Civil Litigation Disqualifications,Legal Services Division,5 Stone Buildings,300047639,650.00,Civil Litigation Disqualifications Counsel Fees,SME,998486332
DBT,The Insolvency Service,18/07/2023,ICT,Change and Technology Services,Microsoft Ltd,300047569,"183,924.00",IT - Run,Large,724594615
DBT,The Insolvency Service,18/07/2023,Staff Costs - Non-Perms,Change and Technology Services,Randstad Solutions Ltd,300047575,907.80,Agency Staff & Contractor Costs,Large,492435726
DBT,The Insolvency Service,18/07/2023,Staff Costs - Non-Perms,Change and Technology Services,Randstad Solutions Ltd,300047576,"2,358.26",Agency Staff & Contractor Costs,Large,492435726
DBT,The Insolvency Service,18/07/2023,Staff Costs - Non-Perms,Change and Technology Services,Randstad Solutions Ltd,300047577,765.00,Agency Staff & Contractor Costs,Large,492435726
DBT,The Insolvency Service,18/07/2023,Staff Costs - Non-Perms,Business Service Division,Randstad Solutions Ltd,300047587,"2,566.32",Agency Staff & Contractor Costs,Large,492435726
DBT,The Insolvency Service,18/07/2023,Staff Costs - Non-Perms,Business Service Division,Randstad Solutions Ltd,300047588,"10,143.91",Agency Staff & Contractor Costs,Large,492435726
DBT,The Insolvency Service,18/07/2023,"Printing, Stationary, Postage & Confidential Waste",Shared Contracts,PSL Print Management Ltd,300047564,"6,995.28",Printing and Reprographics,Large,448293129
DBT,The Insolvency Service,18/07/2023,Legal - Costs of Civil Litigation Disqualifications,Legal Services Division,5 Stone Buildings (Chambers Account),300047641,850.00,Civil Litigation Disqualifications Counsel Fees,,939600703
DBT,The Insolvency Service,18/07/2023,"Printing, Stationary, Postage & Confidential Waste",People & Communications,Such & Such Design Ltd,300047487,"2,920.00",Printing and Reprographics,,180157617
DBT,The Insolvency Service,18/07/2023,Other Costs,People & Communications,Church House Conference Centre Ltd,300047493,"2,604.00",Conferences & Room Hire,,563068242
DBT,The Insolvency Service,18/07/2023,Staff Costs - Non-Perms,Business Service Division,Randstad Solutions Ltd,300047392,"-9,700.31",Agency Staff & Contractor Costs,Large,492435726
DBT,The Insolvency Service,19/07/2023,Estates - Property,"Finance, Commercial, Sustainability & Property",HM Land Registry (F&C - Estates),300047340,"33,054.16",Rent,Public Sector,
DBT,The Insolvency Service,19/07/2023,Estates - Property,"Finance, Commercial, Sustainability & Property",HM Land Registry (F&C - Estates),300047340,"20,236.84",Rates,Public Sector,
DBT,The Insolvency Service,19/07/2023,Estates - Property,"Finance, Commercial, Sustainability & Property",HM Land Registry (F&C - Estates),300047340,"30,583.26",Landlord Service Charge,Public Sector,
DBT,The Insolvency Service,19/07/2023,Legal - Costs of Criminal Prosecutions and Advice,Legal Services Division,Police And Crime Commissioner For Hampshire,300047664,778.60,Costs of Criminal Prosecutions and Advice,Public Sector,
DBT,The Insolvency Service,19/07/2023,Estates - Property,"Finance, Commercial, Sustainability & Property",Edf Energy,300047563,"2,909.71",Electricity,Large,523041202
DBT,The Insolvency Service,19/07/2023,ICT,Change and Technology Services,Ee Ltd (Air Time),300047616,"15,651.10",Telephones - Charges,Large,771592016
DBT,The Insolvency Service,19/07/2023,ICT,Change and Technology Services,Ee Ltd (Air Time),300047617,682.20,Telephones - Charges,Large,771592016
DBT,The Insolvency Service,19/07/2023,Legal - Costs of Civil Litigation Disqualifications,Legal Services Division,Exchange Chambers,300047568,"2,255.00",Civil Litigation Disqualifications Counsel Fees,SME,
DBT,The Insolvency Service,19/07/2023,Legal - Costs of Criminal Prosecutions and Advice,Legal Services Division,18 Red Lion Court Chambers,300047561,977.04,Costs of Criminal Prosecutions and Advice,SME,766793665
DBT,The Insolvency Service,19/07/2023,Legal - Costs of Criminal Prosecutions and Advice,Legal Services Division,St Philips Barristers,300047667,573.84,Costs of Criminal Prosecutions and Advice,SME,614053968
DBT,The Insolvency Service,19/07/2023,Staff Costs - Non-Perms,Projects,SmartSourcing,300047528,"16,902.00",Agency Staff & Contractor Costs,SME,788507869
DBT,The Insolvency Service,19/07/2023,Legal - Costs of Civil Litigation Disqualifications,Legal Services Division,Selbourne Chambers,300047567,"3,620.00",Civil Litigation Disqualifications Counsel Fees,SME,1036299146
DBT,The Insolvency Service,19/07/2023,Legal - Costs of Civil Litigation Disqualifications,Legal Services Division,Selbourne Chambers,300047656,"1,120.00",Civil Litigation Disqualifications Counsel Fees,SME,1036299146
DBT,The Insolvency Service,19/07/2023,Legal - Costs of Civil Litigation Winding Up,Legal Services Division,9 Stone Buildings ,300047657,875,Civil Litigation Winding Up Counsel Fees,SME,168754953
DBT,The Insolvency Service,19/07/2023,Legal - Costs of Civil Litigation Winding Up,Legal Services Division,9 Stone Buildings ,300047658,875.00,Civil Litigation Winding Up Counsel Fees,SME,168754953
DBT,The Insolvency Service,19/07/2023,Legal - Costs of Civil Litigation Disqualifications,Legal Services Division,5 Stone Buildings,300047571,800.00,Civil Litigation Disqualifications Counsel Fees,SME,998486332
DBT,The Insolvency Service,19/07/2023,Legal - Costs of Civil Litigation Disqualifications,Legal Services Division,5 Stone Buildings,300047572,800.00,Civil Litigation Disqualifications Counsel Fees,SME,998486332
DBT,The Insolvency Service,19/07/2023,ICT,Change and Technology Services,Gamma Telecom Limited,300047491,"1,636.20",Telephones - Charges,Large,823820344
DBT,The Insolvency Service,19/07/2023,ICT,Projects,NTT DATA UK LIMITED,300047632,"295,061.00",IT - Transform,Large,159334590
DBT,The Insolvency Service,19/07/2023,ICT,Projects,NTT DATA UK LIMITED,300047633,"13,900.00",IT - Transform,Large,159334590
DBT,The Insolvency Service,19/07/2023,ICT,Projects,NTT DATA UK LIMITED,300047634,"8,580.00",IT - Transform,Large,159334590
DBT,The Insolvency Service,19/07/2023,ICT,Change and Technology Services,e2e-assure Ltd,300047241,"45,646.32",IT - Run,SME,173116233
DBT,The Insolvency Service,19/07/2023,Staff Costs - Non-Perms,Business Service Division,Randstad Solutions Ltd,300047589,585.23,Agency Staff & Contractor Costs,Large,492435726
DBT,The Insolvency Service,19/07/2023,"Legal, Translation & Consultancy",Official Receiver Services,Maitland Chambers,300047643,"2,800.00",Legal Costs Other,SME,171817696
DBT,The Insolvency Service,19/07/2023,Staff Costs - Non-Perms,"Finance, Commercial, Sustainability & Property",Spinwell Global Ltd,300047524,"3,281.16",Agency Staff & Contractor Costs,,257189569
DBT,The Insolvency Service,19/07/2023,ICT,Projects,Prolifics Inc,300047612,"28,400.00",IT - Transform,,639210253
DBT,The Insolvency Service,19/07/2023,Legal - Costs of Civil Litigation Disqualifications,Legal Services Division,Erskine Chambers,300047659,801.00,Civil Litigation Disqualifications Counsel Fees,,279228173
DBT,The Insolvency Service,19/07/2023,Staff Costs - Non-Perms,Change and Technology Services,Talent International (UK) Ltd,300047523,"19,565.04",Agency Staff & Contractor Costs,,176415692
DBT,The Insolvency Service,19/07/2023,Estates - Property,Projects,SODEXO LIMITED,300047182,"59,965.18",Property Major Works,,561229061
DBT,The Insolvency Service,19/07/2023,Estates - Property,Projects,SODEXO LIMITED,300047439,"43,130.79",Property Major Works,,561229061
DBT,The Insolvency Service,19/07/2023,"Legal, Translation & Consultancy",Official Receiver Services,Maitland Chambers,300047642,"-1,725.00",Legal Costs Other,SME,171817696
DBT,The Insolvency Service,20/07/2023,Estates - Property,"Finance, Commercial, Sustainability & Property",HMRC (Office Space),300047696,"9,295.00",Rent,Large,888848141
DBT,The Insolvency Service,20/07/2023,Estates - Property,"Finance, Commercial, Sustainability & Property",HMRC (Office Space),300047696,"2,905.00",Rates,Large,888848141
DBT,The Insolvency Service,20/07/2023,Estates - Property,"Finance, Commercial, Sustainability & Property",HMRC (Office Space),300047696,"6,464.00",Landlord Service Charge,Large,888848141
DBT,The Insolvency Service,20/07/2023,Estates - Property,"Finance, Commercial, Sustainability & Property",HMRC (Office Space),300047697,"28,504.00",Rent,Large,888848141
DBT,The Insolvency Service,20/07/2023,Estates - Property,"Finance, Commercial, Sustainability & Property",HMRC (Office Space),300047697,"8,909.00",Rates,Large,888848141
DBT,The Insolvency Service,20/07/2023,Estates - Property,"Finance, Commercial, Sustainability & Property",HMRC (Office Space),300047697,"19,490.00",Landlord Service Charge,Large,888848141
DBT,The Insolvency Service,20/07/2023,Estates - Property,"Finance, Commercial, Sustainability & Property",Avison Young formerly GVA (Croydon),300047693,"1,209.07",Landlord Service Charge,SME,657719590
DBT,The Insolvency Service,20/07/2023,Estates - Property,"Finance, Commercial, Sustainability & Property",Avison Young formerly GVA (Croydon),300047694,"1,113.14",Landlord Service Charge,SME,657719590
DBT,The Insolvency Service,20/07/2023,Estates - Property,"Finance, Commercial, Sustainability & Property",The Scottish Government,300047678,"40,009.88",Rent,,
DBT,The Insolvency Service,20/07/2023,Training,People & Communications,KPMG LLP,300047677,"4,599.00",Training,Large,791788859
DBT,The Insolvency Service,20/07/2023,ICT,Change and Technology Services,ITS Computing Limited (formerly Equiniti ICS Ltd),300047675,"43,000.00",IT - Run,,
DBT,The Insolvency Service,20/07/2023,ICT,Change and Technology Services,Phoenix Software Limited,300047660,"120,640.76",IT - Run,SME,755349015
DBT,The Insolvency Service,21/07/2023,Legal - Costs of Civil Litigation Disqualifications,Investigations & Enforcement Services,Exchange Chambers,300047751,"2,970.00",Civil Litigation Disqualifications Counsel Fees,SME,
DBT,The Insolvency Service,21/07/2023,Legal - Costs of Civil Litigation Disqualifications,Investigations & Enforcement Services,Exchange Chambers,300047753,"7,166.67",Civil Litigation Disqualifications Counsel Fees,SME,
DBT,The Insolvency Service,21/07/2023,Training,People & Communications,KPMG LLP,300047714,"2,984.46",Training,Large,791788859
DBT,The Insolvency Service,21/07/2023,Training,People & Communications,KPMG LLP,300047715,"2,984.46",Training,Large,791788859
DBT,The Insolvency Service,21/07/2023,Training,People & Communications,KPMG LLP,300047716,"2,984.46",Training,Large,791788859
DBT,The Insolvency Service,21/07/2023,Training,People & Communications,KPMG LLP,300047717,"2,984.46",Training,Large,791788859
DBT,The Insolvency Service,21/07/2023,Training,People & Communications,KPMG LLP,300047718,"2,984.46",Training,Large,791788859
DBT,The Insolvency Service,21/07/2023,Training,Legal Services Division,18 Red Lion Court Chambers,300047750,"1,140.00",Training,SME,766793665
DBT,The Insolvency Service,21/07/2023,Training,Official Receiver Services,Lexis Nexis,300047754,"1,071.96",Training,Large,730859520
DBT,The Insolvency Service,21/07/2023,Staff Costs - Non-Perms,Change and Technology Services,SmartSourcing,300047629,"16,968.67",Agency Staff & Contractor Costs,SME,788507869
DBT,The Insolvency Service,21/07/2023,ICT,Change and Technology Services,Advanced 365 Limited,300047323,"2,176.00",IT - Run,Large,927547983
DBT,The Insolvency Service,21/07/2023,Staff Costs - Non-Perms,Investigations & Enforcement Services,Red Snapper Recruitment,300047699,"1,175.22",Agency Staff & Contractor Costs,SME,835435718
DBT,The Insolvency Service,21/07/2023,Staff Costs - Non-Perms,"Finance, Commercial, Sustainability & Property",Spinwell Global Ltd,300047673,"3,281.16",Agency Staff & Contractor Costs,,257189569
DBT,The Insolvency Service,24/07/2023,"Legal, Translation & Consultancy",People & Communications,Government Legal Department,300047767,"3,654.40",Legal Costs Other,Public Sector,888823066
DBT,The Insolvency Service,24/07/2023,"Legal, Translation & Consultancy",People & Communications,Government Legal Department,300047768,"6,467.88",Legal Costs Other,Public Sector,888823066
DBT,The Insolvency Service,24/07/2023,"Legal, Translation & Consultancy",People & Communications,Government Legal Department,300047769,676.10,Legal Costs Other,Public Sector,888823066
DBT,The Insolvency Service,24/07/2023,Estates - Property,"Finance, Commercial, Sustainability & Property",Cbre Limited,300047613,715.49,Landlord Service Charge,Large,
DBT,The Insolvency Service,24/07/2023,Estates - Property,"Finance, Commercial, Sustainability & Property",Avison Young formerly GVA (Croydon),300047690,995.14,Landlord Service Charge,SME,657719590
DBT,The Insolvency Service,24/07/2023,"Printing, Stationary, Postage & Confidential Waste",Legal Services Division,Thomson Reuters Professional Uk Ltd,300047764,"1,580.10",Publications,Large,
DBT,The Insolvency Service,24/07/2023,ICT,Change and Technology Services,Experian Ltd,300047653,"9,783.60",IT - Run,Large,887133593
DBT,The Insolvency Service,24/07/2023,ICT,Change and Technology Services,Experian Ltd,300047654,"2,629.08",IT - Run,Large,887133593
DBT,The Insolvency Service,24/07/2023,Staff Costs - Non-Perms,Shared Contracts,ALEXANDER MANN SOLUTIONS,300047674,"114,383.60",Agency Staff & Contractor Costs,Large,7444926120
DBT,The Insolvency Service,24/07/2023,Staff Costs - Non-Perms,Projects,SmartSourcing,300047710,"5,634.00",Agency Staff & Contractor Costs,SME,788507869
DBT,The Insolvency Service,24/07/2023,Legal - Costs of Criminal Prosecutions and Advice,Legal Services Division,6 Kings Bench Walk,300047757,"3,575.00",Costs of Criminal Prosecutions and Advice,SME,782714411
DBT,The Insolvency Service,24/07/2023,Legal - Costs of Civil Litigation Disqualifications,Legal Services Division,5 Stone Buildings,300047762,550.00,Civil Litigation Disqualifications Counsel Fees,SME,998486332
DBT,The Insolvency Service,24/07/2023,Staff Costs - Non-Perms,Investigations & Enforcement Services,Red Snapper Recruitment,300047700,"1,958.70",Agency Staff & Contractor Costs,SME,835435718
DBT,The Insolvency Service,24/07/2023,Staff Costs - Non-Perms,Investigations & Enforcement Services,Red Snapper Recruitment,300047701,"1,958.70",Agency Staff & Contractor Costs,SME,835435718
DBT,The Insolvency Service,24/07/2023,Staff Costs - Non-Perms,Investigations & Enforcement Services,Red Snapper Recruitment,300047702,"1,958.70",Agency Staff & Contractor Costs,SME,835435718
DBT,The Insolvency Service,24/07/2023,Staff Costs - Non-Perms,Investigations & Enforcement Services,Red Snapper Recruitment,300047703,"1,958.70",Agency Staff & Contractor Costs,SME,835435718
DBT,The Insolvency Service,24/07/2023,Staff Costs - Non-Perms,Investigations & Enforcement Services,Red Snapper Recruitment,300047704,"1,958.70",Agency Staff & Contractor Costs,SME,835435718
DBT,The Insolvency Service,24/07/2023,Staff Costs - Non-Perms,Business Service Division,Randstad Solutions Ltd,300047722,"2,566.32",Agency Staff & Contractor Costs,Large,492435726
DBT,The Insolvency Service,24/07/2023,ICT,Change and Technology Services,ITS Computing Limited (formerly Equiniti ICS Ltd),300047756,"43,000.00",IT - Run,,
DBT,The Insolvency Service,24/07/2023,Legal - Costs of Civil Litigation Disqualifications,Legal Services Division,5 Stone Buildings,300047763,"1,520.00",Civil Litigation Disqualifications Counsel Fees,,
DBT,The Insolvency Service,24/07/2023,Legal - Costs of Civil Litigation Disqualifications,Legal Services Division,Kings Chambers,300047765,"3,674.13",Civil Litigation Disqualifications Counsel Fees,,862125146
DBT,The Insolvency Service,24/07/2023,Staff Costs - Non-Perms,Shared Contracts,ALEXANDER MANN SOLUTIONS,300047772,-687.16,Agency Staff & Contractor Costs,Large,7444926120
DBT,The Insolvency Service,25/07/2023,Legal - Costs of Criminal Prosecutions and Advice,Legal Services Division,5 St Andrews Hill,300047787,605.00,Costs of Criminal Prosecutions and Advice,SME,703074472
DBT,The Insolvency Service,26/07/2023,"Legal, Translation & Consultancy",People & Communications,Government Legal Department,300047782,799.80,Legal Costs Other,Public Sector,888823066
DBT,The Insolvency Service,26/07/2023,"Legal, Translation & Consultancy",People & Communications,Government Legal Department,300047785,"1,670.40",Legal Costs Other,Public Sector,888823066
DBT,The Insolvency Service,26/07/2023,"Legal, Translation & Consultancy",People & Communications,Government Legal Department,300047786,537.8,Legal Costs Other,Public Sector,888823066
DBT,The Insolvency Service,26/07/2023,Legal - Costs of Civil Litigation Disqualifications,Legal Services Division,Exchange Chambers,300047799,630,Civil Litigation Disqualifications Counsel Fees,SME,
DBT,The Insolvency Service,26/07/2023,Legal - Costs of Criminal Prosecutions and Advice,Legal Services Division,5 St Andrews Hill,300047800,504.00,Costs of Criminal Prosecutions and Advice,SME,703074472
DBT,The Insolvency Service,26/07/2023,Staff Costs - Non-Perms,Shared Contracts,ALEXANDER MANN SOLUTIONS,300047773,"121,750.82",Agency Staff & Contractor Costs,Large,7444926120
DBT,The Insolvency Service,26/07/2023,Staff Costs - Non-Perms,Investigations & Enforcement Services,Red Snapper Recruitment,300047705,"4,290.00",Agency Staff & Contractor Costs,SME,835435718
DBT,The Insolvency Service,26/07/2023,Staff Costs - Non-Perms,Investigations & Enforcement Services,Red Snapper Recruitment,300047706,"1,958.70",Agency Staff & Contractor Costs,SME,835435718
DBT,The Insolvency Service,26/07/2023,Staff Costs - Non-Perms,Investigations & Enforcement Services,Red Snapper Recruitment,300047707,"1,958.70",Agency Staff & Contractor Costs,SME,835435718
DBT,The Insolvency Service,26/07/2023,Staff Costs - Non-Perms,Investigations & Enforcement Services,Red Snapper Recruitment,300047708,"1,958.70",Agency Staff & Contractor Costs,SME,835435718
DBT,The Insolvency Service,26/07/2023,ICT,Change and Technology Services,Phoenix Software Limited,300047711,"2,588.40",IT - Run,SME,755349015
DBT,The Insolvency Service,27/07/2023,ICT,Change and Technology Services,Daisy Corporate Services Trading Limited,300047801,"53,751.84",IT - Run,Large,722471355
DBT,The Insolvency Service,27/07/2023,ICT,Business Service Division,Agilisys Ltd,300047790,"1,653.74",IT - Transform,Large,791711713
DBT,The Insolvency Service,27/07/2023,"Printing, Stationary, Postage & Confidential Waste",Shared Contracts,City Sprint Uk Ltd,300047791,"1,820.77",Courier,SME,997327364
DBT,The Insolvency Service,27/07/2023,Staff Costs - Non-Perms,Change and Technology Services,SmartSourcing,300047821,"5,634.00",Agency Staff & Contractor Costs,SME,788507869
DBT,The Insolvency Service,27/07/2023,Legal - Costs of Civil Litigation Disqualifications,Legal Services Division,9 Stone Buildings ,300047838,"3,298.86",Civil Litigation Disqualifications Counsel Fees,SME,168754953
DBT,The Insolvency Service,27/07/2023,Staff Costs - Non-Perms,Investigations & Enforcement Services,Red Snapper Recruitment,300047824,"1,175.22",Agency Staff & Contractor Costs,SME,835435718
DBT,The Insolvency Service,27/07/2023,Staff Costs - Non-Perms,Investigations & Enforcement Services,Red Snapper Recruitment,300047828,783.48,Agency Staff & Contractor Costs,SME,835435718
DBT,The Insolvency Service,27/07/2023,Staff Costs - Non-Perms,Investigations & Enforcement Services,Red Snapper Recruitment,300047831,"1,175.22",Agency Staff & Contractor Costs,SME,835435718
DBT,The Insolvency Service,28/07/2023,ICT,Change and Technology Services,Agilisys Ltd,300047817,"10,316.26",IT - Run,Large,791711713
DBT,The Insolvency Service,28/07/2023,Estates - Property,"Finance, Commercial, Sustainability & Property",Avison Young (Non Rent/Legal Advice),300047820,"3,600.00",Estates Professional Services,SME,
DBT,The Insolvency Service,28/07/2023,Staff Costs - Non-Perms,Investigations & Enforcement Services,Red Snapper Recruitment,300047823,"4,290.00",Agency Staff & Contractor Costs,SME,835435718
DBT,The Insolvency Service,28/07/2023,Staff Costs - Non-Perms,Investigations & Enforcement Services,Red Snapper Recruitment,300047825,"1,958.70",Agency Staff & Contractor Costs,SME,835435718
DBT,The Insolvency Service,28/07/2023,Staff Costs - Non-Perms,Investigations & Enforcement Services,Red Snapper Recruitment,300047826,"1,958.70",Agency Staff & Contractor Costs,SME,835435718
DBT,The Insolvency Service,28/07/2023,Staff Costs - Non-Perms,Investigations & Enforcement Services,Red Snapper Recruitment,300047827,"1,958.70",Agency Staff & Contractor Costs,SME,835435718
DBT,The Insolvency Service,28/07/2023,Staff Costs - Non-Perms,Investigations & Enforcement Services,Red Snapper Recruitment,300047829,"1,958.70",Agency Staff & Contractor Costs,SME,835435718
DBT,The Insolvency Service,28/07/2023,Staff Costs - Non-Perms,Investigations & Enforcement Services,Red Snapper Recruitment,300047830,"1,958.70",Agency Staff & Contractor Costs,SME,835435718
DBT,The Insolvency Service,28/07/2023,Staff Costs - Non-Perms,Investigations & Enforcement Services,Red Snapper Recruitment,300047832,"1,958.70",Agency Staff & Contractor Costs,SME,835435718
DBT,The Insolvency Service,28/07/2023,Staff Costs - Non-Perms,Investigations & Enforcement Services,Red Snapper Recruitment,300047833,"1,958.70",Agency Staff & Contractor Costs,SME,835435718
DBT,The Insolvency Service,28/07/2023,ICT,Change and Technology Services,Cyberwhite Limited,300047489,"39,840.00",IT - Run,SME,290344996
DBT,The Insolvency Service,28/07/2023,Staff Costs - Non-Perms,"Finance, Commercial, Sustainability & Property",Spinwell Global Ltd,300047819,"3,281.16",Agency Staff & Contractor Costs,,257189569
DBT,The Insolvency Service,28/07/2023,Legal - Costs of Civil Litigation Disqualifications,Legal Services Division,5 Stone Buildings,300047864,"1,360.00",Civil Litigation Disqualifications Counsel Fees,,
DBT,The Insolvency Service,28/07/2023,Training,Legal Services Division,CrimeLine Training Limited,300047860,"1,344.00",Training,,941960705
DBT,The Insolvency Service,31/07/2023,HR,People & Communications,Cabinet Office,300047861,"3,269.00",Recruitment Costs,Large,888801080
DBT,The Insolvency Service,31/07/2023,Staff Costs - Non-Perms,Projects,SmartSourcing,300047857,"45,072.00",Agency Staff & Contractor Costs,SME,788507869
DBT,The Insolvency Service,31/07/2023,Legal - Costs of Civil Litigation Disqualifications,Legal Services Division,Selbourne Chambers,300047872,506.67,Civil Litigation Disqualifications Counsel Fees,SME,1036299146
DBT,The Insolvency Service,31/07/2023,Legal - Costs of Civil Litigation Disqualifications,Legal Services Division,5 Stone Buildings,300047881,520.00,Civil Litigation Disqualifications Counsel Fees,,
DBT,The Insolvency Service,31/07/2023,Legal - Costs of Civil Litigation Disqualifications,Legal Services Division,Kings Chambers,300047868,"1,540.00",Civil Litigation Disqualifications Counsel Fees,,862125146
DBT,The Insolvency Service,31/07/2023,ICT,Investigations & Enforcement Services,Curvature,300047874,"1,434.00",IT - Refresh,,392325785
